[Event "American Cup Women Elimination 2024"]
[Site "Saint Louis"]
[Date "2024.03.16"]
[Round "2.9"]
[White "Paikidze, Nazi"]
[Black "Yu, Jennifer"]
[Result "1/2-1/2"]
[ECO "E06"]
[WhiteElo "2319"]
[BlackElo "2279"]
[Annotator "TA"]
[PlyCount "94"]
[EventDate "2024.03.11"]
[EventType "k.o."]
[EventCountry "USA"]
[SourceTitle "playchess.com"]
[Source "ChessBase"]
[SourceQuality "1"]
[TimeControl "600+5"]

{[%evp 23,94,16,18,27,45,-1,43,31,108,46,112,118,135,97,96,56,92,52,62,0,0,-62,-67,-60,-59,-53,-66,-61,-69,-56,-61,-51,-61,-82,-82,-673,0,-20,0,-71,-71,-71,-72,-72,-72,-73,-72,-73,-64,-57,-59,-68,0,0,0,0,0,0,0,0,0,0,0,0,0,0,0,0,0,0,0,0,0]} 1. d4 {[%emt 0:07:07]} d5 {[%emt 0:07:06]} 2. Nf3 {[%emt 0:00:04]} Nf6 {[%emt 0:00:04]} 3. g3 {[%emt 0:00:03]} e6 {[%emt 0:00:12]} 4. Bg2 {[%emt 0:00:05]} c5 {[%emt 0:00:04]} 5. c4 {[%emt 0:00:17]} Nc6 {[%emt 0:00:09]} 6. cxd5 {[%emt 0:00:06]} Nxd5 {[%emt 0:00:09]} 7. O-O {[%emt 0:00:09]} Be7 {[%emt 0:00:12]} 8. e4 {[%emt 0:00:07]} Nf6 {[%emt 0:00:05]} 9. e5 {[%emt 0:00:11]} Nd5 {[%emt 0:00:04]} 10. dxc5 {[%emt 0:00:07]} Bxc5 {[%emt 0:00:08]} 11. a3 {[%emt 0:00:03]} O-O {[%emt 0:00:17]} 12. b4 {[%emt 0:00:06]} Be7 {[%emt 0:00:06]} 13. Bb2 {[%emt 0:00:06]} b6 {[%emt 0:00:05]} 14. Nbd2 {[%emt 0:00:10]} (14. Qe2 $14) 14... Bb7 {[%emt 0:00:33]} 15. Ne4 {[%emt 0:00:05] White is slightly better.} h6 {[%emt 0:00:41]} (15... b5 $14) 16. Qe2 {[%emt 0:00:11]} (16. Nfd2 $16) 16... a5 {[%emt 0:00:16]} (16... Qb8 $14) 17. b5 $16 {[%emt 0:00:05]} Nb8 {[%emt 0:00:05]} 18. Rac1 {[%emt 0:00:28]} Nd7 {[%emt 0:00:06]} 19. Rfd1 {[%emt 0:00:28] White is more active.} Nc5 {[%emt 0:00:08]} 20. Nxc5 {[%emt 0:00:08]} Bxc5 {[%emt 0:00:05]} 21. Nd4 {[%emt 0:00:10]} (21. Nd2 $14) 21... Qe7 $11 {[%emt 0:00:12]} 22. Nf5 {[%emt 0:00:16]} exf5 $15 {[%emt 0:00:07]} 23. Bxd5 {[%emt 0:00:04]} Bxd5 {[%emt 0:00:06]} 24. Rxd5 {[%emt 0:00:04]} Bxa3 {[%emt 0:00:15]} 25. Rc6 {[%emt 0:00:10]} Bxb2 {[%emt 0:00:13]} 26. Qxb2 {[%emt 0:00:04]} a4 {[%emt 0:00:07]} 27. Rxb6 {[%emt 0:00:13]} a3 {[%emt 0:00:05]} 28. Qa2 {[%emt 0:00:04]} Qb4 {[%emt 0:00:11]} 29. Rd2 {[%emt 0:00:14][%mdl 8192] [#] Against Qb2} (29. Rc6 $17) 29... Rad8 $2 {[%emt 0:00:15]} (29... Qxd2 $19 30. Qxd2 a2) 30. Rbd6 {[%emt 0:00:17]} Rc8 {[%emt 0:00:14]} 31. Rc6 {[%emt 0:00:22]} (31. e6 $11) 31... Qxb5 $17 {[%emt 0:00:06]} 32. Rxc8 {[%emt 0:00:09]} Rxc8 {[%emt 0:00:05]} 33. Qxa3 {[%emt 0:00:05]} Qxe5 {[%emt 0:00:05][%mdl 4096] Endgame. KQR-KQR} ({Reject} 33... Qb1+ 34. Kg2 $11) 34. Rd1 {[%emt 0:00:10] Prevents Qe1+.} Qe2 {[%emt 0:00:06]} 35. Qd3 {[%emt 0:00:06]} Re8 {[%emt 0:00:10]} 36. Qxe2 {[%emt 0:00:06]} Rxe2 $15 {[%emt 0:00:04] KR-KR} 37. Kg2 {[%emt 0:00:11]} g5 {[%emt 0:00:05]} ({Black should play} 37... g6 $15) 38. Rd5 $1 $11 {[%emt 0:00:06] The position is equal.} f4 {[%emt 0:00:05]} 39. gxf4 {[%emt 0:00:09]} gxf4 {[%emt 0:00:05]} 40. Rf5 {[%emt 0:00:07]} Kg7 {[%emt 0:00:05]} 41. Rxf4 {[%emt 0:00:04]} Kg6 {[%emt 0:00:05]} 42. Kf3 {[%emt 0:00:07]} Ra2 {[%emt 0:00:04]} 43. Rg4+ {[%emt 0:00:04]} Kf6 {[%emt 0:00:03]} 44. Rf4+ Kg6 45. Rg4+ {[%emt 0:00:08]} Kf6 {[%emt 0:00:07]} 46. Rf4+ {[%emt 0:00:03]} Kg6 {[%emt 0:00:04]} 47. Rg4+ {[%emt 0:00:04]} Kf6 {[%emt 0:00:03] Weighted Error Value: White=0.41/Black=0.41.  Loses game:     	White=1     	---        Missed win:     	---       	Black=1      Mistake:       	White=5     	Black=3      Inaccurate:     	White=2     	Black=2      OK:         	White=9     	Black=10     Best:        	White=2     	Black=3      Strong:       	White=1     	---} 1/2-1/2

[Event "American Cup Women Elimination 2024"]
[Site "Saint Louis"]
[Date "2024.03.16"]
[Round "2.9"]
[White "Yu, Jennifer"]
[Black "Paikidze, Nazi"]
[Result "1-0"]
[ECO "D45"]
[WhiteElo "2279"]
[BlackElo "2319"]
[Annotator "TA"]
[PlyCount "122"]
[EventDate "2024.03.11"]
[EventType "k.o."]
[EventCountry "USA"]
[SourceTitle "playchess.com"]
[Source "ChessBase"]
[SourceQuality "1"]
[TimeControl "600+5"]

{[%evp 23,122,7,15,14,22,0,20,0,53,68,86,113,154,162,105,20,235,119,144,65,86,82,95,-333,-338,-304,793,802,763,731,2309,1645,29979,29980,29989,29979,2779,0,29991,2391,2579,2437,4510,2984,5639,450,1134,468,475,489,404,464,428,379,355,323,301,267,450,461,477,481,468,464,472,390,504,502,520,505,528,521,528,423,397,0,564,550,566,568,559,582,520,485,778,622,511,478,409,345,702,70,835,835,4084,836,4137,4137,29982,29983,29984]} 1. d4 {[%emt 0:07:06]} Nf6 {[%emt 0:07:07]} 2. c4 e6 3. Nf3 {[%emt 0:00:08]} d5 {[%emt 0:00:07]} 4. Nc3 {[%emt 0:00:02]} c6 5. e3 {[%emt 0:00:07]} Nbd7 {[%emt 0:00:09]} 6. Qc2 {[%emt 0:00:06]} Bd6 {[%emt 0:00:09]} 7. b3 {[%emt 0:00:05]} O-O {[%emt 0:00:06]} 8. Bb2 {[%emt 0:00:09]} b6 {[%emt 0:00:14]} 9. Be2 {[%emt 0:00:16]} Bb7 {[%emt 0:00:05]} 10. O-O {[%emt 0:00:05]} c5 {[%emt 0:00:27]} 11. cxd5 {[%emt 0:00:12]} exd5 {[%emt 0:00:04]} 12. Rad1 {[%emt 0:00:13]} Rc8 {[%emt 0:00:07]} 13. dxc5 {[%emt 0:00:12]} bxc5 {[%emt 0:00:21]} 14. Qf5 {[%emt 0:00:18]} (14. Ng5 $5 h6 15. Nge4 $11) 14... g6 {[%emt 0:00:11]} 15. Qg5 {[%emt 0:00:19] Die Stellung ist ausgeglichen.} Qe7 {[%emt 0:00:32]} (15... Re8 $11) 16. Qh6 $14 {[%emt 0:00:21][%cal Oc3d5] Nxd5! wäre nun fies.} d4 {[%emt 0:00:15]} 17. exd4 {[%emt 0:00:28][%cal Be3d4,Bd4d5][%mdl 32]} Ng4 {[%emt 0:00:09]} 18. Qh3 {[%emt 0:00:08]} h5 {[%emt 0:00:04]} 19. Rfe1 {[%emt 0:00:28]} ({Besser ist} 19. d5 $16) 19... Ndf6 $2 {[%emt 0:00:27] [#]} (19... cxd4 $11 20. Rxd4 Rfe8) 20. Ba6 {[%emt 0:00:30]} Qd7 {[%emt 0:00:20] [#]} 21. Bxb7 {[%emt 0:00:06]} (21. dxc5 Bxc5 22. Rxd7 Bxf2+ 23. Kh1 Bxe1 $11) (21. Bb5 $1 $16 {[%cal Rb5d7]} Qd8 22. d5) 21... Qxb7 {[%emt 0:00:04] [#]} 22. d5 {[%emt 0:00:11] Und jetzt Qh4 wäre schön.} c4 {[%emt 0:00:05][%cal Bc5c4,Bc4c3][%mdl 32]} 23. Ne4 $2 {[%emt 0:00:19][%mdl 8192]} (23. Qh4 $16 {ist nötig, um Vorteil zu sichern. h3 ist eine echte Drohung.} cxb3 24. h3 bxa2 25. hxg4 (25. Ba1 Rfe8 $16) 25... Qxb2 26. Na4 (26. Qxf6 Bb4 $11)) 23... Nxe4 $19 {[%emt 0:00:14]} 24. Rxe4 {[%emt 0:00:04]} f5 {[%emt 0:00:11][%mdl 8192]} (24... c3 $19 25. Bc1 Rfe8 26. Rxe8+ Rxe8) 25. Re6 $18 {[%emt 0:00:06]} (25. Rxc4 $2 Rxc4 26. Qh4 Rc2 $19) 25... c3 {[%emt 0:00:26]} 26. Rxg6+ {[%emt 0:00:05]} Kf7 {[%emt 0:00:03]} 27. Rxd6 {[%emt 0:00:06]} Rh8 {[%emt 0:00:08]} 28. Ng5+ {[%emt 0:00:05]} Kg7 {[%emt 0:00:05]} 29. Ne6+ {[%emt 0:00:06]} Kf7 {[%emt 0:00:05]} 30. Ng5+ $2 {[%emt 0:00:06]} (30. Nd8+ $18 Rhxd8 31. Qxh5+ (31. Rxd8 h4 $18) 31... Kg8 32. Bxc3 (32. Rg6+ Qg7 $18)) 30... Ke7 $2 {[%emt 0:00:05][%mdl 8192]} (30... Kg7 $11 31. Bxc3+ Kf8 32. Bxh8 Ke7 33. Re6+ (33. Qg3 Kf8 $18) 33... Kd7 34. Qxh5 (34. Bc3 Ra8 $18) 34... Kc7 35. Re7+ Kb8 36. Rxb7+ Kxb7) 31. Re6+ {[%emt 0:00:04]} (31. Ba3 $142 Rh7 32. Nxh7 Kf7 33. Qxh5+ Kg8 34. Rg6+ (34. Qxf5 Kh8 35. Qxg4 Rg8 36. Ng5 Rxg5 37. Rh6+ Kg8 38. Qe6+ Qf7 39. Qc8+ Qe8 40. Qxe8+ Kg7 41. Qf8#) 34... Qg7 35. Ng5 (35. Rxg7+ Kxg7 36. Re1 Rc7 37. Bf8+ Kg8 38. Qg6+ Kh8 39. Re8 Rxh7 40. Bh6#) 35... Nf6 36. Rxg7+ Kxg7 37. Ne6+ Kg8 38. Qg6+ Kh8 39. Qg7#) 31... Kd7 {[%emt 0:00:03]} 32. Bxc3 {[%emt 0:00:05]} Qb5 {[%emt 0:00:07]} 33. Rde1 {[%emt 0:00:05] Weiss will mit Re7+ Matt setzen.} Qc5 {[%emt 0:00:09]} 34. Bf6 {[%emt 0:00:06]} (34. Qd3 $142 {Beabsichtigt Re7+ und Matt.} Rhe8 35. Rxe8 (35. Qxf5 Qxf2+ 36. Qxf2 Nxf2 $18) 35... Rxe8 36. Qxf5+ Kc7 37. Qf7+ (37. Rxe8 Qxf2+ 38. Qxf2 Nxf2 39. Kxf2 Kd7 40. Re6 Kc8 41. Ne4 h4 42. Nc5 a6 43. Ba5 Kb8 44. Bb6 Kc8 45. Re8#) 37... Kb6 38. Qxe8 (38. Rxe8 Qxf2+ 39. Qxf2+ Nxf2 40. Kxf2 Kc7 41. Ne4 Kd7 42. Re6 Kc8 43. Nc5 a5 44. Bxa5 Kb8 45. Bb6 h4 46. Re8#) 38... Qxf2+ 39. Kh1) 34... Qxf2+ {[%emt 0:00:05]} 35. Kh1 {[%emt 0:00:04]} Qxe1+ {[%emt 0:00:05]} 36. Rxe1 {[%emt 0:00:04] jetzt Re7+ und aus.} Nf2+ {[%emt 0:00:03]} 37. Kg1 {[%emt 0:00:04] Droht Matt per Re7+.} Nxh3+ {[%emt 0:00:04]} 38. gxh3 {[%emt 0:00:05]} Rhg8 {[%emt 0:00:03]} 39. Re7+ {[%emt 0:00:05][%cal Be1e7,Be7a7,Ba7a5][%mdl 32]} Kd6 {[%emt 0:00:04]} 40. Rxa7 {[%emt 0:00:05]} Rc1+ $2 {[%emt 0:00:06]} (40... Ra8 {war angesagt.} 41. Rxa8 Rxa8) 41. Kf2 {[%emt 0:00:04]} Rc2+ {[%emt 0:00:04]} 42. Ke3 {[%emt 0:00:04]} Kxd5 {[%emt 0:00:04]} 43. Ra5+ {[%emt 0:00:05]} Kc6 {[%emt 0:00:05]} 44. a4 {[%emt 0:00:05]} ({Finger weg von} 44. Rxf5 Rxh2 45. Be5 Rxa2 $18) 44... Re8+ {[%emt 0:00:03]} 45. Kf4 {[%emt 0:00:05]} Rxh2 {[%emt 0:00:05]} 46. Kxf5 {[%emt 0:00:04]} Rf2+ {[%emt 0:00:04]} 47. Kg6 {[%emt 0:00:05]} Rb8 {[%emt 0:00:06]} 48. Ra6+ {[%emt 0:00:05]} Kd5 {[%emt 0:00:04]} 49. Ra5+ {[%emt 0:00:05]} Kc6 {[%emt 0:00:05]} 50. Ne4 {[%emt 0:00:04]} Rg2+ {[%emt 0:00:04]} 51. Kxh5 {[%emt 0:00:06]} Rxb3 {[%emt 0:00:00]} 52. h4 {[%emt 0:00:04]} Re3 {[%emt 0:00:00]} 53. Ng5 {[%emt 0:00:05]} Ra3 {[%emt 0:00:00]} (53... Rh2 $142 54. Re5 Rb3) 54. Ra6+ {[%emt 0:00:05]} Kb7 {[%emt 0:00:00]} 55. Re6 {[%emt 0:00:05]} Rxa4 {[%emt 0:00:02]} 56. Nf7 {[%emt 0:00:06] Schwarz muss nun Kh6 beachten.} Rf2 $2 {[%emt 0:00:00]} (56... Rgg4 57. Bg5 Kc8 58. Rc6+ Kb7) 57. Kg6 $2 {[%emt 0:00:06]} (57. Kg5 $18 Rg2+ 58. Kh6) 57... Rg4+ $2 {[%emt 0:00:00][%mdl 8192]} (57... Rxf6+ $14 58. Rxf6 Rxh4) 58. Bg5 {[%emt 0:00:04]} Kc7 {[%emt 0:00:06]} 59. h5 {[%emt 0:00:05]} Kd7 {[%emt 0:00:23]} 60. Re7+ {[%emt 0:00:04]} Kc6 {[%emt 0:00:04]} 61. Ne5+ {[%emt 0:00:04]} Kd5 {[%emt 0:00:10] Gewichteter Fehlerwert: Weiß=1.04/Schwarz=1.13.  Verlustzug:     	Weiß=1     	Schwarz=2     Gewinn verpasst:   	Weiß=1     	Schwarz=1     Fehler:       	Weiß=3     	Schwarz=4     Ungenau:       	---       	Schwarz=2     OK:         	Weiß=11    	Schwarz=8     Bester:       	Weiß=2     	Schwarz=8} 1-0

[Event "American Cup Women Elimination 2024"]
[Site "Saint Louis"]
[Date "2024.03.17"]
[Round "3.1"]
[White "Tokhirjonova, Gulrukhbegim"]
[Black "Yu, Jennifer"]
[Result "0-1"]
[ECO "E08"]
[WhiteElo "2365"]
[BlackElo "2279"]
[Annotator "TA"]
[PlyCount "84"]
[EventDate "2024.03.11"]
[EventType "k.o."]
[EventCountry "USA"]
[SourceTitle "playchess.com"]
[Source "ChessBase"]
[SourceQuality "1"]
[TimeControl "1500+10"]

{[%evp 17,83,31,24,35,25,17,27,0,9,2,42,29,14,16,58,-25,-20,-21,-21,-62,-22,-19,-33,-54,-22,-54,-33,-59,-57,-62,0,0,0,0,0,-27,-22,-58,-58,-62,-72,-118,-122,-125,-123,-112,-98,-98,-86,-131,-131,-144,-139,-531,-528,-535,-524,-508,-501,-29989,-29990,-29994,-29994,-29996,-29997,-29997,-29998,-29999]} 1. d4 {[%emt 0:10:08]} d5 {[%emt 0:10:06]} 2. c4 {[%emt 0:00:03]} e6 {[%emt 0:00:02]} 3. Nf3 {[%emt 0:00:02]} Nf6 {[%emt 0:00:04]} 4. g3 {[%emt 0:00:04]} Bb4+ {[%emt 0:00:46]} 5. Bd2 {[%emt 0:00:02]} Be7 {[%emt 0:00:13]} 6. Bg2 {[%emt 0:00:02]} O-O {[%emt 0:00:05]} 7. O-O {[%emt 0:00:02]} Nbd7 {[%emt 0:00:13]} 8. Qc2 {[%emt 0:00:06]} Ne4 {[%emt 0:00:46]} 9. Bf4 {[%emt 0:00:21]} c6 {[%emt 0:00:35]} 10. h4 {[%emt 0:00:29]} h6 {[%emt 0:01:39]} 11. Nc3 {[%emt 0:00:07]} g5 {[%emt 0:01:04] Droht stark ...Nxc3.} 12. hxg5 {[%emt 0:00:51] Weiß hat minimalen Vorteil.} hxg5 {[%emt 0:00:01] Droht ...Nxc3 und aus.} 13. Be3 {[%emt 0:00:04]} f5 {[%emt 0:00:18]} 14. Ne5 {[%emt 0:01:01]} Nxe5 {[%emt 0:01:08]} 15. dxe5 {[%emt 0:00:05][%cal Rg2e4]} Qe8 {[%emt 0:00:35]} 16. Qc1 {[%emt 0:01:40]} (16. Bxe4 $14 dxe4 17. Kg2) 16... Qh5 $11 {[%emt 0:02:59]} (16... dxc4 $2 17. Nxe4 fxe4 18. Bxg5 $18 (18. Qxc4 Qh5 $18)) 17. Nxe4 {[%emt 0:02:21]} dxe4 {[%emt 0:00:44]} 18. f3 {[%emt 0:00:22]} exf3 {[%emt 0:02:17]} (18... Rf7 {sieht schärfer aus.} 19. fxe4 Rh7 20. Rf3 fxe4 21. Rf2 Qh2+) 19. exf3 {[%emt 0:00:21] [#]} f4 $1 {[%emt 0:00:08]} 20. g4 {[%emt 0:01:57]} (20. Bf2 fxg3) 20... Qh6 {[%emt 0:01:10]} 21. Bd4 {[%emt 0:00:28]} Rd8 {[%emt 0:01:13]} 22. Qc3 {[%emt 0:00:51]} b6 {[%emt 0:00:40][%cal Od8d4] ...Rxd4! ist eine echte Drohung.} 23. Rfd1 {[%emt 0:01:11]} Ba6 {[%emt 0:00:20]} (23... c5 $15 24. Bf2 Bd7) 24. Bf2 {[%emt 0:00:32]} Kf7 {[%emt 0:00:17]} 25. Qc2 {[%emt 0:00:24]} Qh8 {[%emt 0:00:51]} 26. Qe4 {[%emt 0:00:45]} c5 {[%emt 0:00:28]} 27. b3 {[%emt 0:00:13]} Rab8 {[%emt 0:00:08]} 28. a4 {[%emt 0:00:37]} Bb7 {[%emt 0:00:02]} 29. Rxd8 {[%emt 0:00:16]} (29. Qe2 $142) 29... Bxd8 $17 {[%emt 0:00:01]} 30. Qd3 {[%emt 0:00:52][%cal Oa4a5]} Bc6 {[%emt 0:00:21][%cal Od8c7]} (30... Qxe5 31. Re1 Qf6 32. a5) 31. a5 {[%emt 0:00:34]} Bc7 $36 {[%emt 0:00:42][%mdl 2048] Es drohte Qd6. Schwarz bestimmt, wo es lang geht.} (31... bxa5 $6 32. Qd6 (32. Bxc5 $2 Qxe5 33. Qh7+ Qg7 $19) 32... Rc8 33. Bxc5 $11) 32. axb6 {[%emt 0:00:12]} Rd8 {[%emt 0:00:07]} (32... Bxe5 $2 33. Rxa7+ Kf6 34. Bxc5 $18) (32... Bxb6 33. b4 (33. Qd6 Qe8 $11) 33... Rd8 (33... cxb4 $2 34. Bxb6 Rb7 35. Bxa7 $18) (33... Qxe5 34. Re1 $11) 34. Qb1 Qxe5 (34... Rd2 35. bxc5 Rxf2 36. cxb6 $11) 35. Qh7+ Kf8 (35... Qg7 36. Qxg7+ Kxg7 37. bxc5 $16) 36. Qh6+ (36. Re1 Qf6 $11) 36... Ke7 37. Qh7+ Kf8 38. Qh6+ (38. Re1 Qf6 $15) 38... Kf7 39. Re1 $15) (32... axb6 $2 33. Ra7 Rc8 34. Qd6 $18) 33. Qe2 {[%emt 0:01:59]} axb6 {[%emt 0:00:03]} ({Schwächer ist} 33... Qxe5 34. Qxe5 (34. bxc7 Qxa1+ 35. Bf1 Rc8 $17) 34... Bxe5 35. Rxa7+ Kg6 36. Bxc5 $16) ({Auf keinen Fall} 33... Bxb6 34. Be1 $15) 34. Re1 {[%emt 0:00:13]} Qh7 {[%emt 0:00:02] Zielt auf ...Qd3 ab. Schwarz steht deutlich aktiver.} 35. b4 $2 {[%emt 0:00:42][%mdl 8192] Davon erholt Weiß sich nicht mehr.} (35. Bf1 $17 {leistet mehr Widerstand.}) 35... cxb4 $19 {[%emt 0:00:17]} 36. Qb2 {[%emt 0:00:31]} Qd3 $1 {[%emt 0:00:15][%csl LRc4,LRf3]} 37. Qxb4 {[%emt 0:00:26]} Bxf3 {[%emt 0:00:03]} 38. Bxb6 {[%emt 0:00:19]} (38. Qb1 $19 Qxb1 (38... Bxg4 $2 39. c5 $19) 39. Rxb1 Bxg4 40. Rc1) 38... Bxg2 {[%emt 0:00:09] Schwarz setzt Matt.} 39. Bxc7 {[%emt 0:00:10] [#] Weiss ist schwach auf den weissen Feldern} Qg3 $1 {[%emt 0:00:05]} 40. Qb2 {[%emt 0:00:16]} (40. Qe7+ Kxe7) 40... Bd5+ {[%emt 0:00:07]} 41. Kf1 {[%emt 0:00:09]} Bxc4+ {[%emt 0:00:01]} 42. Re2 {[%emt 0:00:00]} Rd1# {[%emt 0:00:01] Gewichteter Fehlerwert: Weiß=0.49/Schwarz=0.08 (makellos) .  Verlustzug:     	Weiß=1     	---        Fehler:       	Weiß=3     	Schwarz=1     Ungenau:       	Weiß=6     	Schwarz=4     OK:         	Weiß=10    	Schwarz=12    Bester:       	---       	Schwarz=4} 0-1

[Event "American Cup Women Elimination 2024"]
[Site "Saint Louis"]
[Date "2024.03.17"]
[Round "3.2"]
[White "Yu, Jennifer"]
[Black "Tokhirjonova, Gulrukhbegim"]
[Result "0-1"]
[ECO "D35"]
[WhiteElo "2279"]
[BlackElo "2365"]
[Annotator "TA"]
[PlyCount "102"]
[EventDate "2024.03.11"]
[EventType "k.o."]
[EventCountry "USA"]
[SourceTitle "playchess.com"]
[Source "ChessBase"]
[SourceQuality "1"]
[TimeControl "1500+10"]

{[%evp 19,102,26,27,-22,-20,-38,-33,-33,0,0,0,-52,-46,-43,-27,-61,-55,-76,-66,-73,-39,-41,-42,-89,-80,-116,-124,-131,-58,-54,-38,-55,-39,-166,-168,-176,-184,-237,-162,-169,-154,-160,-110,-102,-93,-172,-69,-77,-68,-56,-70,-493,-510,-632,-606,-1543,-305,-1695,-1692,-1685,-1552,-29975,-5598,-29976,-29977,-29976,-29977,-29975,-29978,-29982,-29983,-29983,-29984,-29984,-29985,-29985,-29986,-29985,-29985,-29985,-29986,-29987,-29988,-29989,-29978]} 1. d4 {[%emt 0:10:01]} d5 {[%emt 0:10:02]} 2. c4 {[%emt 0:00:03]} e6 {[%emt 0:00:02]} 3. Nc3 {[%emt 0:00:08]} Be7 {[%emt 0:00:03]} 4. cxd5 {[%emt 0:00:29]} exd5 {[%emt 0:00:03]} 5. Bf4 {[%emt 0:00:10]} Nf6 {[%emt 0:00:16]} 6. e3 {[%emt 0:00:08]} c6 {[%emt 0:00:10]} 7. Bd3 {[%emt 0:00:22]} O-O {[%emt 0:00:12]} 8. Nf3 {[%emt 0:00:46]} Nbd7 {[%emt 0:00:27]} 9. Qc2 {[%emt 0:00:48]} Re8 {[%emt 0:00:20]} 10. O-O {[%emt 0:00:13]} Nf8 {[%emt 0:00:05]} 11. Ne5 {[%emt 0:00:37]} (11. h3 {is more appropriate.}) 11... Nh5 $11 {[%emt 0:00:30]} 12. Bg3 {[%emt 0:00:47]} Nxg3 {[%emt 0:00:25]} 13. hxg3 {[%emt 0:00:04] Black is slightly better.} Bd6 {[%emt 0:00:08]} 14. Nf3 $1 {[%emt 0:00:41]} Bg4 {[%emt 0:00:37]} 15. Ne2 {[%emt 0:02:35]} (15. e4 $11) 15... Qf6 {[%emt 0:00:22]} 16. Nh2 {[%emt 0:00:07]} Bd7 {[%emt 0:01:05]} 17. Nf4 {[%emt 0:00:54]} g6 {[%emt 0:00:12]} 18. Rfe1 {[%emt 0:01:01]} Rac8 {[%emt 0:00:14]} 19. Rab1 {[%emt 0:00:28]} a5 {[%emt 0:00:10]} 20. a3 {[%emt 0:00:06]} h5 {[%emt 0:00:58]} 21. Qd1 {[%emt 0:01:55]} (21. Nf3 $15) 21... Kg7 {[%emt 0:01:14]} 22. b4 {[%emt 0:01:48]} axb4 {[%emt 0:00:14]} 23. axb4 {[%emt 0:00:01]} Nh7 {[%emt 0:00:55]} (23... h4 $17 {Hoping for ...hxg3.} 24. gxh4 Bxf4 (24... Qxh4 25. g3 $17) 25. exf4 Qxf4 26. Rxe8 Rxe8) 24. b5 $15 {[%emt 0:01:05]} h4 {[%emt 0:00:43]} 25. bxc6 {[%emt 0:00:47]} bxc6 {[%emt 0:00:08] ...hxg3 is the strong threat.} 26. Nf1 {[%emt 0:00:27]} (26. gxh4 $1 $15 Qxh4 27. g3) 26... hxg3 $19 {[%emt 0:00:20]} 27. fxg3 {[%emt 0:00:13]} Qg5 {[%emt 0:01:02]} 28. Qf3 {[%emt 0:01:37]} (28. Qd2 {was worth a try.}) 28... Nf6 {[%emt 0:00:30]} 29. Nh3 {[%emt 0:00:32]} Qh6 {[%emt 0:00:46]} 30. Nf2 {[%emt 0:00:28]} Rh8 {[%emt 0:01:06] Black is more active.} (30... Re6 $142 31. Rb6 Rh8) 31. Rb7 $17 {[%emt 0:00:03]} Be6 {[%emt 0:02:16] A strong pair of Bishops.} 32. Reb1 {[%emt 0:00:31]} (32. e4 $17 dxe4 33. Bxe4) 32... Rh7 {[%emt 0:00:55]} ({Black should play} 32... Ra8 $19 {White must now prevent ...Ra2.} 33. R7b6 Bd7) 33. R1b6 $15 {[%emt 0:00:16]} Qg5 {[%emt 0:00:33]} 34. e4 {[%emt 0:00:12]} dxe4 {[%emt 0:00:35]} 35. Nxe4 {[%emt 0:00:01][%mdl 8192] Black converts the advantage convincingly.} (35. Bxe4 $15 Qc1 36. Bxc6) 35... Nxe4 $19 {[%emt 0:00:05]} 36. Bxe4 {[%emt 0:00:02]} Rch8 {[%emt 0:02:27] ( -> ...Rh1+)} 37. Rxc6 {[%emt 0:00:03]} Rh1+ {[%emt 0:00:02]} 38. Kf2 {[%emt 0:00:01] [#]} Rxf1+ $1 {[%emt 0:00:23][%mdl 512]} 39. Kxf1 {[%emt 0:00:01] [#]} Qd2 $1 {[%emt 0:00:04][%cal Rh8h1]} 40. Qe2 {[%emt 0:00:31]} (40. Kg1 Qe1+) 40... Rh1+ {[%emt 0:00:17]} 41. Kf2 {[%emt 0:00:00] [#]} Bxg3+ $1 {[%emt 0:00:26][%mdl 512] Black mates.} 42. Kxg3 {[%emt 0:00:45]} Qxe2 {[%emt 0:00:02]} 43. Rxe6 {[%emt 0:00:02]} Qe1+ {[%emt 0:00:14]} 44. Kg4 {[%emt 0:00:15]} Qh4+ {[%emt 0:00:18]} 45. Kf3 {[%emt 0:00:01]} Rf1+ {[%emt 0:00:02]} 46. Ke2 {[%emt 0:00:10]} Qf2+ {[%emt 0:00:19]} 47. Kd3 {[%emt 0:00:01]} Rd1+ {[%emt 0:00:04]} 48. Kc3 {[%emt 0:00:08]} Qxd4+ {[%emt 0:00:02]} ({Weaker is} 48... Rxd4 49. Rxg6+ Kf8 50. Rb8+ Ke7 51. Rb7+ Rd7 52. Rxd7+ Kxd7 53. Rg8 $17) 49. Kb3 {[%emt 0:00:10]} Qe3+ {[%emt 0:00:10]} 50. Kb4 {[%emt 0:00:37]} Rd4+ {[%emt 0:00:03]} 51. Kb5 {[%emt 0:00:05]} Rxe4 {[%emt 0:00:03] Weighted Error Value: White=0.73/Black=0.15 (very precise) .  Loses game:     	White=1     	---        Mistake:       	White=5     	Black=3      Inaccurate:     	White=3     	Black=3      OK:         	White=5     	Black=6      Best:        	White=3     	Black=2      Strong:       	White=1     	---} 0-1